[Event "Pobeskydi 2026"]
[Site "Frydek-Mistek, Czech Republic"]
[Date "2026.04.03"]
[Round "3.6"]
[White "Bjolek, Jan"]
[Black "Boff, Ondrej"]
[Result "0-1"]
[TimeControl "90 min+30s/move"]
[WhiteTitle "-"]
[BlackTitle "-"]
[WhiteFideId "23725800"]
[BlackFideId "23733950"]
[WhiteElo "2026"]
[BlackElo "2101"]

1. d4 {[%clk 01:30:59]} Nf6 {[%clk 01:30:49]} {[%emt 00:00:11]} 2. Bf4 {[%clk
01:31:24]} {[%emt 00:00:05]} c5 {[%clk 01:30:47]} {[%emt 00:00:32]} 3. e3
{[%clk 01:31:49]} {[%emt 00:00:05]} g6 {[%clk 01:30:36]} {[%emt 00:00:40]} 4.
c3 {[%clk 01:32:01]} {[%emt 00:00:19]} b6 {[%clk 01:29:29]} {[%emt 00:01:36]} 5.
Nf3 {[%clk 01:31:03]} {[%emt 00:01:29]} Bg7 {[%clk 01:28:17]} {[%emt 00:01:41]}
6. Nbd2 {[%clk 01:30:45]} {[%emt 00:00:49]} Bb7 {[%clk 01:24:46]} {[%emt
00:04:00]} 7. Be2 {[%clk 01:27:45]} {[%emt 00:03:31]} d6 {[%clk 01:22:13]}
{[%emt 00:03:02]} 8. O-O {[%clk 01:22:37]} {[%emt 00:05:38]} O-O {[%clk
01:19:59]} {[%emt 00:02:45]} 9. Re1 {[%clk 01:17:09]} {[%emt 00:05:58]} Nbd7
{[%clk 01:17:29]} {[%emt 00:02:59]} 10. Bf1 {[%clk 01:02:09]} {[%emt 00:15:31]}
Nh5 {[%clk 01:09:39]} {[%emt 00:08:20]} 11. Bg3 {[%clk 01:01:07]} {[%emt
00:01:32]} Nxg3 {[%clk 01:09:03]} {[%emt 00:01:05]} 12. hxg3 {[%clk 01:01:21]}
{[%emt 00:00:16]} d5 {[%clk 01:07:59]} {[%emt 00:01:34]} 13. a4 {[%clk
00:52:17]} {[%emt 00:09:35]} e5 {[%clk 01:03:52]} {[%emt 00:04:37]} 14. dxe5
{[%clk 00:52:09]} {[%emt 00:00:38]} Nxe5 {[%clk 01:03:58]} {[%emt 00:00:24]} 15.
Nxe5 {[%clk 00:51:59]} {[%emt 00:00:40]} Bxe5 {[%clk 01:04:19]} {[%emt
00:00:09]} 16. e4 {[%clk 00:37:35]} {[%emt 00:14:54]} Bg7 {[%clk 00:52:40]}
{[%emt 00:12:09]} 17. exd5 {[%clk 00:36:15]} {[%emt 00:01:50]} Qxd5 {[%clk
00:52:24]} {[%emt 00:00:45]} 18. Nf3 {[%clk 00:23:58]} {[%emt 00:12:47]} Rfe8
{[%clk 00:43:43]} {[%emt 00:09:12]} 19. Qxd5 {[%clk 00:22:29]} {[%emt
00:01:58]} Bxd5 {[%clk 00:43:57]} {[%emt 00:00:17]} 20. Rxe8+ {[%clk 00:17:06]}
{[%emt 00:05:52]} Rxe8 {[%clk 00:44:05]} {[%emt 00:00:23]} 21. a5 {[%clk
00:16:59]} {[%emt 00:00:37]} Rb8 {[%clk 00:38:15]} {[%emt 00:06:19]} 22. axb6
{[%clk 00:03:49]} {[%emt 00:13:42]} Rxb6 {[%clk 00:37:56]} {[%emt 00:00:48]} 23.
Rxa7 {[%clk 00:04:13]} {[%emt 00:00:06]} Rxb2 {[%clk 00:37:21]} {[%emt
00:01:05]} 24. Rd7 {[%clk 00:02:31]} {[%emt 00:02:11]} Bxf3 {[%clk 00:37:25]}
{[%emt 00:00:26]} 25. Rd8+ {[%clk 00:02:53]} {[%emt 00:00:08]} Bf8 {[%clk
00:37:49]} {[%emt 00:00:04]} 26. gxf3 {[%clk 00:03:19]} {[%emt 00:00:06]} Rc2
{[%clk 00:37:52]} {[%emt 00:00:26]} 27. c4 {[%clk 00:03:01]} {[%emt 00:00:49]}
Kg7 {[%clk 00:37:43]} {[%emt 00:00:38]} 28. Rd5 {[%clk 00:02:33]} {[%emt
00:00:58]} Be7 {[%clk 00:36:35]} {[%emt 00:01:38]} 29. Bd3 {[%clk 00:02:45]}
{[%emt 00:00:19]} Rc3 {[%clk 00:33:24]} {[%emt 00:03:40]} 30. Kf1 {[%clk
00:01:14]} {[%emt 00:02:01]} Bf6 {[%clk 00:31:22]} {[%emt 00:02:33]} 31. f4
{[%clk 00:01:33]} {[%emt 00:00:11]} Bd4 {[%clk 00:31:13]} {[%emt 00:00:39]} 32.
Be2 {[%clk 00:01:19]} {[%emt 00:00:44]} Rc1+ {[%clk 00:31:05]} {[%emt
00:00:38]} 33. Kg2 {[%clk 00:01:44]} {[%emt 00:00:04]} Rc2 {[%clk 00:31:30]}
{[%emt 00:00:06]} 34. Kf1 {[%clk 00:01:38]} {[%emt 00:00:36]} h5 {[%clk
00:31:16]} {[%emt 00:00:43]} 35. Rd7 {[%clk 00:01:03]} {[%emt 00:01:05]} Kf6
{[%clk 00:30:49]} {[%emt 00:00:57]} 36. Rb7 {[%clk 00:01:07]} {[%emt 00:00:27]}
Ra2 {[%clk 00:30:31]} {[%emt 00:00:48]} 37. Rc7 {[%clk 00:00:39]} {[%emt
00:00:58]} Ke6 {[%clk 00:29:07]} {[%emt 00:01:53]} 38. Rc6+ {[%clk 00:00:42]}
{[%emt 00:00:28]} Kf5 {[%clk 00:27:46]} {[%emt 00:01:49]} 39. f3 {[%clk
00:00:54]} {[%emt 00:00:20]} Ra1+ {[%clk 00:27:35]} {[%emt 00:00:40]} 40. Kg2
{[%clk 00:01:19]} {[%emt 00:00:06]} Ra2 {[%clk 00:27:28]} {[%emt 00:00:36]} 41.
Kf1 {[%clk 00:01:37]} {[%emt 00:00:13]} Ra3 {[%clk 00:21:29]} {[%emt 00:06:29]}
42. Rd6 {[%clk 00:02:03]} {[%emt 00:00:04]} h4 {[%clk 00:20:58]} {[%emt
00:01:00]} 43. Rd5+ {[%clk 00:02:25]} {[%emt 00:00:09]} Kf6 {[%clk 00:20:34]}
{[%emt 00:00:54]} 44. gxh4 {[%clk 00:02:38]} {[%emt 00:00:18]} Ra1+ {[%clk
00:20:49]} {[%emt 00:00:14]} 45. Kg2 {[%clk 00:03:04]} {[%emt 00:00:04]} Rg1+
{[%clk 00:21:12]} {[%emt 00:00:06]} 46. Kh2 {[%emt 00:01:16]} Rc1 {[%clk
00:17:53]} {[%emt 00:03:48]} 47. Kg2 {[%clk 00:01:56]} {[%emt 00:00:54]} Rg1+
{[%clk 00:15:17]} {[%emt 00:03:06]} 48. Kh2 {[%emt 00:00:08]} Re1 {[%clk
00:15:42]} {[%emt 00:00:01]} 49. Bd3 {[%clk 00:02:48]} {[%emt 00:00:05]} Re3
{[%clk 00:16:04]} {[%emt 00:00:07]} 50. Be4 {[%clk 00:02:47]} {[%emt 00:00:32]}
Rc3 {[%clk 00:15:39]} {[%emt 00:00:55]} 51. Rd7 {[%clk 00:02:26]} {[%emt
00:00:50]} Ke6 {[%clk 00:15:22]} {[%emt 00:00:47]} 52. Rd5 {[%clk 00:00:32]}
{[%emt 00:02:25]} f5 {[%clk 00:13:54]} {[%emt 00:01:57]} 53. Bb1 {[%clk
00:00:33]} {[%emt 00:00:29]} Rb3 {[%clk 00:14:09]} {[%emt 00:00:14]} 54. h5
{[%clk 00:00:32]} {[%emt 00:00:31]} Rxb1 {[%clk 00:14:16]} {[%emt 00:00:24]} 55.
hxg6 {[%clk 00:00:35]} {[%emt 00:00:28]} Rb8 {[%clk 00:14:36]} {[%emt
00:00:09]} 0-1

[Event "Pobeskydi 2026"]
[Site "Frydek-Mistek, Czech Republic"]
[Date "2026.04.03"]
[Round "3.7"]
[White "Osina, Jaromir"]
[Black "Trybus, Daniel"]
[Result "1-0"]
[TimeControl "90 min+30s/move"]
[WhiteTitle "-"]
[BlackTitle "-"]
[WhiteFideId "23712759"]
[BlackFideId "21816131"]
[WhiteElo "1972"]
[BlackElo "2055"]

1. d4 {[%clk 01:30:59]} Nf6 {[%clk 01:22:33]} {[%emt 00:08:27]} 2. c4 {[%clk
01:31:22]} {[%emt 00:00:07]} d6 {[%clk 01:22:21]} {[%emt 00:00:40]} 3. Nc3
{[%clk 01:30:35]} {[%emt 00:01:19]} Nbd7 {[%clk 01:22:44]} {[%emt 00:00:06]} 4.
e4 {[%clk 01:29:16]} {[%emt 00:01:50]} e5 {[%clk 01:22:45]} {[%emt 00:00:30]} 5.
d5 {[%clk 01:27:50]} {[%emt 00:01:56]} Be7 {[%clk 01:22:21]} {[%emt 00:00:52]}
6. f3 {[%clk 01:26:23]} {[%emt 00:01:57]} O-O {[%clk 01:21:07]} {[%emt
00:01:45]} 7. Be3 {[%clk 01:25:58]} {[%emt 00:00:55]} c6 {[%clk 01:19:11]}
{[%emt 00:02:27]} 8. Nge2 {[%clk 01:19:33]} {[%emt 00:06:54]} Ne8 {[%clk
01:15:42]} {[%emt 00:03:58]} 9. Qd2 {[%clk 01:13:17]} {[%emt 00:06:47]} Nc7
{[%clk 01:13:48]} {[%emt 00:02:24]} 10. O-O-O {[%clk 01:09:21]} {[%emt
00:04:25]} cxd5 {[%clk 01:12:17]} {[%emt 00:02:02]} 11. cxd5 {[%clk 01:01:59]}
{[%emt 00:07:53]} b5 {[%clk 01:11:52]} {[%emt 00:00:54]} 12. Kb1 {[%clk
00:58:14]} {[%emt 00:04:15]} b4 {[%clk 01:08:37]} {[%emt 00:03:46]} 13. Na4
{[%clk 00:58:26]} {[%emt 00:00:18]} Na6 {[%clk 01:08:51]} {[%emt 00:00:15]} 14.
Nc1 {[%clk 00:53:51]} {[%emt 00:05:04]} Qa5 {[%clk 01:08:57]} {[%emt 00:00:25]}
15. b3 {[%clk 00:53:20]} {[%emt 00:01:01]} Bd8 {[%clk 01:07:22]} {[%emt
00:02:05]} 16. Nd3 {[%clk 00:47:03]} {[%emt 00:06:47]} Bb6 {[%clk 01:03:22]}
{[%emt 00:04:30]} 17. Ndb2 {[%clk 00:44:44]} {[%emt 00:02:49]} Bxe3 {[%clk
01:02:35]} {[%emt 00:01:18]} 18. Qxe3 {[%clk 00:44:03]} {[%emt 00:01:11]} Nac5
{[%clk 01:01:01]} {[%emt 00:02:03]} 19. Nc4 {[%clk 00:40:47]} {[%emt 00:03:46]}
Qc7 {[%clk 01:00:17]} {[%emt 00:01:14]} 20. Nxc5 {[%clk 00:39:28]} {[%emt
00:01:49]} Nxc5 {[%clk 01:00:35]} {[%emt 00:00:12]} 21. Rc1 {[%clk 00:39:39]}
{[%emt 00:00:19]} Qd8 {[%clk 00:44:29]} {[%emt 00:16:36]} 22. Nxd6 {[%clk
00:33:09]} {[%emt 00:07:00]} Na4 {[%clk 00:40:12]} {[%emt 00:04:47]} 23. Nxf7
{[%clk 00:27:18]} {[%emt 00:06:22]} Rxf7 {[%clk 00:40:33]} {[%emt 00:00:08]} 24.
bxa4 {[%clk 00:27:42]} {[%emt 00:00:06]} Rb8 {[%clk 00:40:39]} {[%emt
00:00:24]} 25. Bb5 {[%clk 00:23:49]} {[%emt 00:04:24]} b3 {[%clk 00:38:20]}
{[%emt 00:02:48]} 26. axb3 {[%clk 00:22:15]} {[%emt 00:02:04]} Rfb7 {[%clk
00:37:20]} {[%emt 00:01:30]} 27. Rc3 {[%clk 00:14:38]} {[%emt 00:08:08]} Bd7
{[%clk 00:34:24]} {[%emt 00:03:26]} 28. Bxd7 {[%clk 00:11:39]} {[%emt
00:03:28]} Qxd7 {[%clk 00:34:53]} {[%emt 00:00:01]} 29. Ka2 {[%clk 00:11:45]}
{[%emt 00:00:24]} Rb4 {[%clk 00:34:48]} {[%emt 00:00:35]} 30. Rhc1 {[%clk
00:11:02]} {[%emt 00:01:12]} Qb7 {[%clk 00:33:10]} {[%emt 00:02:09]} 31. Qc5
{[%clk 00:08:17]} {[%emt 00:03:15]} h6 {[%clk 00:27:16]} {[%emt 00:06:24]} 32.
Qc6 {[%clk 00:07:09]} {[%emt 00:01:38]} Rxb3 {[%clk 00:27:37]} {[%emt
00:00:09]} 33. Qe6+ {[%clk 00:06:04]} {[%emt 00:01:35]} 1-0

[Event "Pobeskydi 2026"]
[Site "Frydek-Mistek, Czech Republic"]
[Date "2026.04.03"]
[Round "3.8"]
[White "Lichorad, Mateusz"]
[Black "Kovacik, Oliver"]
[Result "1-0"]
[TimeControl "90 min+30s/move"]
[WhiteTitle "-"]
[BlackTitle "-"]
[WhiteFideId "21817693"]
[BlackFideId "2321963"]
[WhiteElo "2039"]
[BlackElo "1969"]

1. e4 {[%clk 01:30:58]} {[%emt 00:00:02]} c6 {[%clk 01:30:56]} {[%emt
00:00:05]} 2. d4 {[%clk 01:31:23]} {[%emt 00:00:04]} d5 {[%clk 01:31:22]}
{[%emt 00:00:04]} 3. e5 {[%clk 01:31:49]} {[%emt 00:00:04]} Bf5 {[%clk
01:31:41]} {[%emt 00:00:11]} 4. h4 {[%clk 01:32:11]} {[%emt 00:00:08]} h5
{[%clk 01:32:06]} {[%emt 00:00:05]} 5. Bd3 {[%clk 01:32:37]} {[%emt 00:00:04]}
Bxd3 {[%clk 01:32:30]} {[%emt 00:00:07]} 6. Qxd3 {[%clk 01:33:05]} {[%emt
00:00:02]} e6 {[%clk 01:32:51]} {[%emt 00:00:09]} 7. Nf3 {[%clk 01:33:31]}
{[%emt 00:00:03]} c5 {[%clk 01:33:17]} {[%emt 00:00:05]} 8. dxc5 {[%clk
01:33:55]} {[%emt 00:00:06]} Bxc5 {[%clk 01:33:39]} {[%emt 00:00:08]} 9. c4
{[%clk 01:33:41]} {[%emt 00:00:44]} Ne7 {[%clk 01:31:05]} {[%emt 00:03:04]} 10.
O-O {[%clk 01:31:16]} {[%emt 00:02:54]} Nbc6 {[%clk 01:31:00]} {[%emt
00:00:36]} 11. Nc3 {[%clk 01:23:31]} {[%emt 00:08:15]} Nb4 {[%clk 01:27:17]}
{[%emt 00:04:13]} 12. Qe2 {[%clk 01:23:46]} {[%emt 00:00:15]} dxc4 {[%clk
01:22:47]} {[%emt 00:05:00]} 13. Qxc4 {[%clk 01:23:03]} {[%emt 00:01:13]} Qc7
{[%clk 01:22:23]} {[%emt 00:00:54]} 14. Be3 {[%clk 01:20:51]} {[%emt 00:02:42]}
Rc8 {[%clk 01:17:12]} {[%emt 00:05:42]} 15. Qb5+ {[%clk 01:16:11]} {[%emt
00:05:09]} Kf8 {[%clk 01:15:17]} {[%emt 00:02:26]} 16. Bxc5 {[%clk 01:16:04]}
{[%emt 00:00:36]} Qxc5 {[%clk 01:15:42]} {[%emt 00:00:06]} 17. Qxb7 {[%clk
01:14:56]} {[%emt 00:01:38]} Nd3 {[%clk 01:13:35]} {[%emt 00:02:37]} 18. Rad1
{[%clk 01:01:48]} {[%emt 00:13:37]} Nxe5 {[%clk 01:11:51]} {[%emt 00:02:14]} 19.
Nxe5 {[%clk 01:02:11]} {[%emt 00:00:07]} Qxe5 {[%clk 01:12:19]} {[%emt
00:00:02]} 20. Rd7 {[%clk 01:02:26]} {[%emt 00:00:15]} Re8 {[%clk 01:10:51]}
{[%emt 00:01:59]} 21. Rfd1 {[%clk 01:01:36]} {[%emt 00:01:19]} g6 {[%clk
01:07:51]} {[%emt 00:03:31]} 22. Qxa7 {[%clk 00:56:43]} {[%emt 00:05:23]} Qf4
{[%clk 01:00:50]} {[%emt 00:07:30]} 23. g3 {[%clk 00:52:50]} {[%emt 00:04:24]}
Qe5 {[%clk 00:57:57]} {[%emt 00:03:23]} 24. Rb7 {[%clk 00:49:17]} {[%emt
00:04:02]} f5 {[%clk 00:57:00]} {[%emt 00:01:27]} 25. Qd4 {[%clk 00:41:57]}
{[%emt 00:07:50]} Qxd4 {[%clk 00:56:43]} {[%emt 00:00:47]} 26. Rxd4 {[%clk
00:42:25]} {[%emt 00:00:02]} Kf7 {[%clk 00:56:10]} {[%emt 00:01:02]} 27. Rdd7
{[%clk 00:41:04]} {[%emt 00:01:52]} Kf6 {[%clk 00:56:23]} {[%emt 00:00:17]} 28.
a4 {[%clk 00:38:41]} {[%emt 00:02:53]} Nc6 {[%clk 00:55:57]} {[%emt 00:00:53]}
29. Rf7+ {[%clk 00:37:27]} {[%emt 00:01:46]} Ke5 {[%clk 00:56:22]} {[%emt
00:00:06]} 30. Rbd7 {[%clk 00:37:39]} {[%emt 00:00:18]} 1-0

[Event "Pobeskydi 2026"]
[Site "Frydek-Mistek, Czech Republic"]
[Date "2026.04.03"]
[Round "3.9"]
[White "Szumiec, Jan"]
[Black "Kendall, Arthur"]
[Result "1/2-1/2"]
[TimeControl "90 min+30s/move"]
[WhiteTitle "-"]
[BlackTitle "-"]
[WhiteFideId "41815661"]
[BlackFideId "343410960"]
[WhiteElo "1826"]
[BlackElo "2032"]

1. e4 {[%clk 01:30:54]} {[%emt 00:00:04]} e6 {[%clk 01:28:44]} {[%emt
00:02:17]} 2. d4 {[%clk 01:31:17]} {[%emt 00:00:07]} d5 {[%clk 01:29:05]}
{[%emt 00:00:09]} 3. Nc3 {[%clk 01:31:38]} {[%emt 00:00:09]} Nf6 {[%clk
01:29:25]} {[%emt 00:00:08]} 4. e5 {[%clk 01:32:00]} {[%emt 00:00:09]} Nfd7
{[%clk 01:29:49]} {[%emt 00:00:06]} 5. f4 {[%clk 01:32:09]} {[%emt 00:00:21]}
c5 {[%clk 01:30:17]} {[%emt 00:00:03]} 6. Nf3 {[%clk 01:32:27]} {[%emt
00:00:11]} Nc6 {[%clk 01:30:31]} {[%emt 00:00:17]} 7. Be3 {[%clk 01:32:39]}
{[%emt 00:00:18]} cxd4 {[%clk 01:30:32]} {[%emt 00:00:30]} 8. Nxd4 {[%clk
01:27:43]} {[%emt 00:05:27]} Qb6 {[%clk 01:30:58]} {[%emt 00:00:03]} 9. Qd2
{[%clk 01:21:41]} {[%emt 00:06:32]} Qxb2 {[%clk 01:30:47]} {[%emt 00:00:41]} 10.
Rb1 {[%clk 01:19:21]} {[%emt 00:02:50]} Qa3 {[%clk 01:31:09]} {[%emt 00:00:08]}
11. Bb5 {[%clk 01:11:45]} {[%emt 00:08:06]} Nxd4 {[%clk 01:30:44]} {[%emt
00:00:54]} 12. Bxd4 {[%clk 01:09:55]} {[%emt 00:02:21]} a6 {[%clk 01:30:34]}
{[%emt 00:00:40]} 13. Bxd7+ {[%clk 01:08:06]} {[%emt 00:02:18]} Bxd7 {[%clk
01:31:00]} {[%emt 00:00:06]} 14. Rb3 {[%clk 01:07:18]} {[%emt 00:01:18]} Qe7
{[%clk 01:30:25]} {[%emt 00:01:03]} 15. Rxb7 {[%clk 01:06:42]} {[%emt
00:01:07]} Qh4+ {[%clk 01:30:33]} {[%emt 00:00:21]} 16. Qf2 {[%clk 01:04:41]}
{[%emt 00:02:32]} Qxf2+ {[%clk 01:30:40]} {[%emt 00:00:23]} 17. Kxf2 {[%clk
01:03:10]} {[%emt 00:02:01]} Be7 {[%clk 01:27:51]} {[%emt 00:03:18]} 18. Rhb1
{[%clk 01:00:06]} {[%emt 00:03:34]} Bd8 {[%clk 01:27:21]} {[%emt 00:01:00]} 19.
Rb8 {[%clk 00:45:10]} {[%emt 00:15:27]} Rxb8 {[%clk 01:27:45]} {[%emt
00:00:05]} 20. Rxb8 {[%clk 00:45:19]} {[%emt 00:00:21]} O-O {[%clk 01:27:12]}
{[%emt 00:01:03]} 21. Ke3 {[%clk 00:44:20]} {[%emt 00:01:30]} g5 {[%clk
01:05:48]} {[%emt 00:21:53]} 22. f5 {[%clk 00:39:50]} {[%emt 00:05:01]} Ba5
{[%clk 01:00:38]} {[%emt 00:05:39]} 23. Rxf8+ {[%clk 00:38:42]} {[%emt
00:01:38]} Kxf8 {[%clk 01:01:05]} {[%emt 00:00:04]} 24. f6 {[%clk 00:38:37]}
{[%emt 00:00:35]} Kg8 {[%clk 00:50:15]} {[%emt 00:11:18]} 25. g4 {[%clk
00:34:24]} {[%emt 00:04:44]} h6 {[%clk 00:42:07]} {[%emt 00:08:38]} 26. a3
{[%clk 00:31:58]} {[%emt 00:02:58]} Kh7 {[%clk 00:37:26]} {[%emt 00:05:09]} 27.
Ke2 {[%clk 00:18:24]} {[%emt 00:14:05]} Kg6 {[%clk 00:35:49]} {[%emt 00:02:06]}
28. Ke3 {[%clk 00:18:09]} {[%emt 00:00:46]} h5 {[%clk 00:28:24]} {[%emt
00:07:54]} 29. h3 {[%clk 00:18:05]} {[%emt 00:00:34]} h4 {[%clk 00:21:39]}
{[%emt 00:07:15]} 30. Ke2 {[%clk 00:17:57]} {[%emt 00:00:36]} Be8 {[%clk
00:20:48]} {[%emt 00:01:23]} 31. Kd1 {[%clk 00:17:12]} {[%emt 00:01:16]} Bxc3
{[%clk 00:15:00]} {[%emt 00:06:18]} 32. Bxc3 {[%clk 00:17:38]} {[%emt
00:00:05]} d4 {[%clk 00:14:03]} {[%emt 00:01:27]} 33. Bxd4 {[%clk 00:15:49]}
{[%emt 00:02:18]} Bc6 {[%clk 00:14:31]} {[%emt 00:00:02]} 34. Ke2 {[%clk
00:09:22]} {[%emt 00:06:56]} Bg2 {[%clk 00:14:57]} {[%emt 00:00:04]} 35. c4
{[%clk 00:09:21]} {[%emt 00:00:31]} Bxh3 {[%clk 00:14:51]} {[%emt 00:00:36]} 36.
Kf3 {[%clk 00:09:41]} {[%emt 00:00:11]} Bf1 {[%clk 00:14:24]} {[%emt 00:00:57]}
37. c5 {[%clk 00:10:01]} {[%emt 00:00:11]} Bb5 {[%clk 00:14:40]} {[%emt
00:00:12]} 38. Kg2 {[%clk 00:10:10]} {[%emt 00:00:22]} Bc6+ {[%clk 00:14:38]}
{[%emt 00:00:33]} 39. Kh3 {[%clk 00:10:29]} {[%emt 00:00:10]} Bf3 {[%clk
00:14:55]} {[%emt 00:00:13]} 40. Be3 {[%clk 00:10:34]} {[%emt 00:00:25]}
1/2-1/2

[Event "Pobeskydi 2026"]
[Site "Frydek-Mistek, Czech Republic"]
[Date "2026.04.03"]
[Round "3.10"]
[White "Ocelak, David"]
[Black "Lee, Yuk Hei"]
[Result "1-0"]
[TimeControl "90 min+30s/move"]
[WhiteTitle "-"]
[BlackTitle "-"]
[WhiteFideId "23728795"]
[BlackFideId "343411061"]
[WhiteElo "2009"]
[BlackElo "1960"]

1. e4 {[%clk 01:30:40]} {[%emt 00:00:19]} c5 {[%clk 01:29:33]} {[%emt
00:01:22]} 2. d4 {[%clk 01:30:43]} {[%emt 00:00:32]} cxd4 {[%clk 01:29:49]}
{[%emt 00:00:15]} 3. Qxd4 {[%clk 01:31:05]} {[%emt 00:00:08]} Nc6 {[%clk
01:30:15]} {[%emt 00:00:05]} 4. Qd3 {[%clk 01:31:23]} {[%emt 00:00:11]} Nf6
{[%clk 01:29:59]} {[%emt 00:00:46]} 5. Nc3 {[%clk 01:31:31]} {[%emt 00:00:21]}
e6 {[%clk 01:25:42]} {[%emt 00:04:47]} 6. Bf4 {[%clk 01:31:18]} {[%emt
00:00:43]} e5 {[%clk 01:20:05]} {[%emt 00:06:08]} 7. Bg5 {[%clk 01:26:55]}
{[%emt 00:04:52]} d6 {[%clk 01:15:28]} {[%emt 00:05:08]} 8. a3 {[%clk
01:18:11]} {[%emt 00:09:14]} Be7 {[%clk 01:10:27]} {[%emt 00:05:31]} 9. Bxf6
{[%clk 01:17:51]} {[%emt 00:00:50]} gxf6 {[%clk 01:10:31]} {[%emt 00:00:27]} 10.
O-O-O {[%clk 01:16:12]} {[%emt 00:02:07]} a6 {[%clk 01:05:09]} {[%emt
00:05:52]} 11. Nd5 {[%clk 01:10:44]} {[%emt 00:05:58]} Be6 {[%clk 01:02:01]}
{[%emt 00:03:39]} 12. Ne2 {[%clk 01:07:19]} {[%emt 00:03:54]} Bxd5 {[%clk
00:58:59]} {[%emt 00:03:33]} 13. Qxd5 {[%clk 01:07:22]} {[%emt 00:00:27]} Rc8
{[%clk 00:59:24]} {[%emt 00:00:06]} 14. Ng3 {[%clk 01:05:29]} {[%emt 00:02:22]}
Nd4 {[%clk 00:57:05]} {[%emt 00:02:49]} 15. Rxd4 {[%clk 01:04:29]} {[%emt
00:01:29]} exd4 {[%clk 00:56:56]} {[%emt 00:00:40]} 16. Bc4 {[%clk 01:04:42]}
{[%emt 00:00:16]} O-O {[%clk 00:50:06]} {[%emt 00:07:21]} 17. Nf5 {[%clk
00:58:04]} {[%emt 00:07:07]} Qd7 {[%clk 00:48:34]} {[%emt 00:02:03]} 18. Qxd4
{[%clk 00:55:18]} {[%emt 00:03:15]} Rc5 {[%clk 00:47:27]} {[%emt 00:01:37]} 19.
Bd5 {[%clk 00:51:30]} {[%emt 00:04:18]} Rfc8 {[%clk 00:41:08]} {[%emt
00:06:49]} 20. c3 {[%clk 00:50:20]} {[%emt 00:01:40]} b5 {[%clk 00:39:32]}
{[%emt 00:02:07]} 21. Qd2 {[%clk 00:46:32]} {[%emt 00:04:18]} Bf8 {[%clk
00:38:46]} {[%emt 00:01:16]} 22. h4 {[%clk 00:45:27]} {[%emt 00:01:35]} Kh8
{[%clk 00:28:45]} {[%emt 00:10:31]} 23. Rh3 {[%clk 00:33:40]} {[%emt 00:12:16]}
Bg7 {[%clk 00:28:02]} {[%emt 00:01:15]} 24. Rg3 {[%clk 00:32:28]} {[%emt
00:01:41]} Rg8 {[%clk 00:28:01]} {[%emt 00:00:31]} 25. Qd4 {[%clk 00:28:45]}
{[%emt 00:04:13]} Rxd5 {[%clk 00:21:31]} {[%emt 00:07:01]} 26. Qxd5 {[%clk
00:28:28]} {[%emt 00:00:46]} Bf8 {[%clk 00:21:55]} {[%emt 00:00:06]} 27. Rxg8+
{[%clk 00:25:10]} {[%emt 00:03:47]} Kxg8 {[%clk 00:22:19]} {[%emt 00:00:06]} 28.
h5 {[%clk 00:24:22]} {[%emt 00:01:17]} Qe6 {[%clk 00:20:50]} {[%emt 00:02:01]}
29. f4 {[%clk 00:22:47]} {[%emt 00:02:04]} Qd7 {[%clk 00:19:58]} {[%emt
00:01:23]} 30. g4 {[%clk 00:22:47]} {[%emt 00:00:29]} Qd8 {[%clk 00:17:28]}
{[%emt 00:03:01]} 31. Qc6 {[%clk 00:20:50]} {[%emt 00:02:27]} Qb8 {[%clk
00:15:13]} {[%emt 00:02:44]} 32. Qd5 {[%clk 00:14:16]} {[%emt 00:07:04]} Qc7
{[%clk 00:10:53]} {[%emt 00:04:51]} 33. Kc2 {[%clk 00:13:26]} {[%emt 00:01:20]}
Qb6 {[%clk 00:10:33]} {[%emt 00:00:49]} 34. Qd4 {[%clk 00:13:39]} {[%emt
00:00:17]} Qc6 {[%clk 00:09:13]} {[%emt 00:01:51]} 35. Kd3 {[%clk 00:13:19]}
{[%emt 00:00:49]} a5 {[%clk 00:08:07]} {[%emt 00:01:38]} 36. h6 {[%clk
00:12:39]} {[%emt 00:01:07]} b4 {[%clk 00:05:26]} {[%emt 00:03:13]} 37. Qxf6
{[%clk 00:10:35]} {[%emt 00:02:33]} Qa6+ {[%clk 00:05:28]} {[%emt 00:00:30]} 38.
c4 {[%clk 00:10:41]} {[%emt 00:00:23]} Qb7 {[%clk 00:05:52]} {[%emt 00:00:06]}
39. axb4 {[%clk 00:08:57]} {[%emt 00:02:13]} d5 {[%clk 00:05:55]} {[%emt
00:00:28]} 40. exd5 {[%clk 00:08:29]} {[%emt 00:00:58]} Qxb4 {[%clk 00:06:19]}
{[%emt 00:00:06]} 41. Qc3 {[%clk 00:06:49]} {[%emt 00:02:08]} Qc5 {[%clk
00:06:44]} {[%emt 00:00:07]} 42. d6 {[%clk 00:06:57]} {[%emt 00:00:22]} 1-0